bitfinex-derivatives/quotes_SOLF0:USTF0_20241107
["timestamp","ask_amount","ask_price","bid_price","bid_amount"]
[1730999056299,2.5764,193.86,193.71,3.22]
[1730999056504,3.22,193.87,193.71,3.22]
[1730999056991,2.5767,193.84,193.8,2.5771]
[1730999057192,3.22,193.87,193.71,3.22]
[1730999057488,2.5769,193.83,193.71,3.22]
[1730999058096,2.577,193.82,193.71,3.22]
[1730999058294,3.22,193.87,193.78,2.5774]
[1730999059299,2.5771,193.81,193.69,1.4389]
[1730999059489,2.5771,193.81,193.76,2.5776]
[1730999059800,0.9718,193.86,193.69,4.6589]
[1730999059999,0.9718,193.86,193.75,2.5779]
[1730999060000,2.5775,193.79,193.75,2.5779]
[1730999060498,2.5779,193.76,193.72,2.5783]
[1730999063898,2.5608323,193.8,193.69,1.4389]
[1730999064200,3.22,193.81,193.69,1.4389]
[1730999064397,3.22,193.85,193.69,1.4389]
[1730999064795,2.5767,193.84,193.73,2.578]
[1730999064993,3.22,193.85,193.73,3.22]
[1730999065604,2.5769,193.83,193.79,2.5772]
[1730999065997,4.6714,193.89,193.82,2.577]
[1730999066497,1.4514,193.89,193.75,2.56794392]
[1730999066698,3.22,193.9,193.84,2.5767]
[1730999066902,1.4678,193.96,193.76,4.00161124]
[1730999067101,1.4678,193.96,193.79,3.22]
[1730999067102,3.22,193.95,193.79,3.22]
[1730999067304,3.22,193.95,193.8,1.5733]
[1730999067605,2.5754,193.94,193.88,2.576]
[1730999067803,1.4678,193.96,193.8,1.5733]
[1730999067993,4.6878,193.96,193.8,1.5733]
[1730999068393,2.5754,193.94,193.88,2.576]
[1730999068799,4.6878,193.96,193.88,2.576]
[1730999069294,4.6878,193.96,193.85,2.5764]
[1730999070807,2.5759,193.91,193.85,2.5764]
[1730999071905,2.5762,193.88,193.8,1.5733]
[1730999072908,2.5762,193.88,193.83,2.5768]
[1730999073111,2.5762,193.88,193.8,1.5733]
[1730999073305,2.5762,193.88,193.81,2.577]
[1730999073505,2.5763,193.87,193.8,1.5733]
[1730999074310,2.5765,193.86,193.81,2.5771]
[1730999074815,5.79550255,193.9,193.76,1.4662]
[1730999075012,5.79550255,193.9,193.78,2.5775]
[1730999075314,5.79550255,193.9,193.76,1.4662]
[1730999075508,2.5764,193.86,193.77,2.5776]
[1730999075816,5.79550255,193.9,193.77,2.5776]
[1730999076317,2.5769,193.83,193.77,2.5776]
[1730999077113,3.22,193.84,193.67,3.22]
[1730999077414,2.3989,193.82,193.66,2.8662]
[1730999077710,1.427,193.82,193.67,5.95280884]
[1730999078015,1.427,193.82,193.66,2.8662]
[1730999078313,2.5772,193.8,193.75,2.5778]
[1730999079622,2.5771,193.81,193.75,2.5778]
[1730999080208,2.5773,193.8,193.75,2.5778]
[1730999081119,2.5773,193.8,193.75,2.5779]
[1730999081916,2.5773,193.8,193.66,2.8662]
[1730999081917,2.5774,193.79,193.69,3.22]
[1730999082913,2.5777,193.77,193.69,3.22]
[1730999083318,2.5777,193.77,193.73,2.5781]
[1730999083518,2.5774,193.79,193.69,3.22]
[1730999084615,2.5774,193.79,193.74,2.5779]
[1730999085910,2.55929748,193.79,193.69,3.22]
[1730999086115,2.5778,193.77,193.72,2.5783]
[1730999086619,2.5778,193.76,193.72,2.5783]
[1730999086820,3.22,193.84,193.74,2.578]
[1730999087515,2.5771,193.81,193.74,2.578]
[1730999087714,3.22,193.84,193.74,2.578]
[1730999088113,2.5773,193.8,193.74,2.578]
[1730999089221,3.22,193.81,193.74,2.578]
[1730999089426,2.5774,193.79,193.66,6.0862]
[1730999089718,2.5774,193.79,193.75,2.5779]
[1730999089919,2.5775,193.78,193.66,6.0862]
[1730999090121,3.22,193.81,193.67,4.6626278]
[1730999090420,2.5774,193.79,193.66,6.0862]
[1730999090618,2.5774,193.79,193.74,2.5779]
[1730999091917,5.7971,193.81,193.67,4.66189805]
[1730999092123,3.22,193.81,193.66,6.0862]
[1730999092418,2.5774,193.79,193.67,4.66186623]
[1730999092629,2.5774,193.79,193.66,6.0862]
[1730999092823,2.5774,193.79,193.67,4.66199788]
[1730999093123,2.5775,193.78,193.75,2.5778]
[1730999093825,3.22,193.81,193.66,6.0862]
[1730999094923,2.5775,193.78,193.7,2.5785]
[1730999095220,2.5775,193.78,193.66,6.0862]
[1730999095419,2.5775,193.78,193.74,2.5779]
[1730999095820,2.5775,193.78,193.67,4.65885729]
[1730999096021,2.5775,193.78,193.69,2.5786]
[1730999096224,2.5775,193.78,193.66,6.0862]
[1730999096419,2.5778,193.76,193.67,4.65931424]
[1730999096619,2.5778,193.76,193.73,2.5781]
[1730999097126,2.5776,193.77,193.73,2.5781]
[1730999097819,3.22,193.81,193.74,2.578]
[1730999098418,3.22,193.81,193.66,2.8662]
[1730999098619,3.22,193.81,193.67,4.66011074]
[1730999098929,2.5775,193.79,193.66,2.8662]
[1730999099120,2.52820764,193.78,193.67,4.65978023]
[1730999099428,2.5779,193.76,193.66,2.8662]
[1730999099629,2.52227409,193.79,193.72,2.5783]
[1730999099821,3.22,193.81,193.72,2.5783]
[1730999100221,3.22,193.81,193.75,2.5779]
[1730999100624,3.22,193.81,193.67,5.158]
[1730999100830,2.9962,193.88,193.77,2.5777]
[1730999101032,3.22,193.87,193.69,3.22]
[1730999101229,2.5772,193.82,193.69,3.22]
[1730999101419,3.22,193.87,193.69,3.22]
[1730999101823,2.5775,193.79,193.74,2.578]
[1730999102224,2.578,193.76,193.66,2.8662]
[1730999102426,3.22,193.81,193.71,2.5784]
[1730999102824,3.22,193.81,193.66,6.0862]
[1730999103023,3.22,193.81,193.7,2.5786]
[1730999103327,3.22,193.81,193.66,6.0862]
[1730999103725,3.22,193.81,193.71,2.5784]
[1730999104024,2.578,193.76,193.71,2.5784]
[1730999104230,2.54213858,193.78,193.71,2.5784]
[1730999104420,3.22,193.81,193.7,2.5786]
[1730999104421,2.5781,193.75,193.7,2.5786]
[1730999105330,2.54368646,193.77,193.61,5.1596]
[1730999105626,3.22,193.74,193.58,3.0024]
[1730999105836,3.22,193.73,193.59,5.95071004]
[1730999106027,2.5786,193.72,193.67,2.5791]
[1730999106627,2.579,193.68,193.63,2.5797]
[1730999106827,3.22,193.67,193.58,3.0024]
[1730999107125,3.22,193.66,193.58,3.0024]
[1730999107326,3.839,193.72,193.54,1.452]
[1730999107327,3.22,193.65,193.54,1.452]
[1730999107525,3.22,193.64,193.54,1.452]
[1730999107720,3.22,193.63,193.54,1.452]
[1730999107933,3.22,193.62,193.54,1.452]
[1730999108531,3.22,193.62,193.58,2.5803]
[1730999108728,3.22,193.62,193.54,1.452]
[1730999108934,2.5793,193.66,193.6,2.5799]
[1730999109129,2.5793,193.66,193.54,1.452]
[1730999109130,3.22,193.66,193.54,1.452]
[1730999109735,3.22,193.66,193.62,2.5798]
[1730999109929,3.22,193.66,193.54,1.452]
[1730999111028,3.22,193.66,193.62,2.5797]
[1730999111227,3.22,193.66,193.54,1.452]
[1730999111228,3.22,193.66,193.55,3.22]
[1730999111534,3.22,193.68,193.55,3.22]
[1730999111929,2.579,193.67,193.55,3.22]
[1730999112437,2.5792,193.66,193.61,2.5798]
[1730999112627,3.22,193.68,193.54,1.452]
[1730999113230,3.22,193.68,193.56,2.5803]
[1730999113231,2.5798,193.61,193.56,2.5803]
[1730999113431,3.22,193.68,193.56,2.5803]
[1730999113739,2.5797,193.62,193.56,2.5803]
[1730999113935,3.22,193.68,193.57,2.5802]
[1730999114337,2.5797,193.62,193.54,1.452]
[1730999114539,2.5797,193.62,193.57,2.5802]
[1730999114949,2.5795,193.64,193.54,1.452]
[1730999115160,3.22,193.68,193.59,2.5799]
[1730999115442,2.5794,193.65,193.59,2.5799]
[1730999115633,3.22,193.64,193.59,2.5799]
[1730999116731,5.7995,193.64,193.54,1.452]
[1730999117036,3.22,193.64,193.54,1.452]
[1730999117429,3.22,193.64,193.57,2.5802]
[1730999118140,2.5796,193.62,193.57,2.5802]
[1730999118341,3.22,193.64,193.56,2.5804]
[1730999118742,3.22,193.64,193.51,3.0782]
[1730999118934,3.22,193.64,193.57,2.5802]
[1730999119135,3.22,193.64,193.51,3.0782]
[1730999119633,2.5798,193.62,193.56,2.5803]
[1730999120136,5.7996,193.63,193.51,3.0782]
[1730999120336,3.22,193.63,193.51,3.0782]
[1730999120735,3.22,193.63,193.51,1.5482]
[1730999120937,3.22,193.63,193.49,1.5095]
[1730999121338,2.5802,193.58,193.54,2.5807]
[1730999122141,2.5806,193.55,193.49,1.5095]
[1730999122639,3.22,193.57,193.49,1.5095]
[1730999122640,3.22,193.57,193.5,2.5812]
[1730999123146,3.22,193.57,193.49,1.5095]
[1730999123351,2.5808,193.54,193.49,4.0907]
[1730999123738,3.22,193.57,193.49,4.0907]
[1730999123937,2.5806,193.55,193.49,4.0907]
[1730999124144,3.22,193.57,193.49,4.0907]
[1730999124145,3.22,193.57,193.5,2.5812]
[1730999124440,2.5807,193.55,193.5,2.5812]
[1730999124644,3.22,193.57,193.42,2.5822]
[1730999124846,3.22,193.57,193.29,4.7074]
[1730999124847,0.9619,193.54,193.34,1.5399]
[1730999125143,3.4985551,193.54,193.34,1.5399]
[1730999125342,0.9619,193.54,193.41,2.5823]
[1730999125649,2.5818,193.47,193.41,2.5823]
[1730999125840,3.2,193.46,193.41,2.5823]
[1730999127337,2.53329598,193.5,193.34,1.5399]
[1730999127641,0.9619,193.54,193.34,1.5399]
[1730999127642,3.2,193.49,193.34,1.5399]
[1730999127842,3.2,193.48,193.35,3.2]
[1730999128041,3.2,193.48,193.43,2.5821]
[1730999128741,3.2,193.48,193.35,3.2]
[1730999128951,3.2,193.48,193.34,1.5399]
[1730999129449,2.5821,193.44,193.38,2.5828]
[1730999129648,3.2,193.48,193.34,1.5399]
[1730999130048,3.2,193.48,193.37,2.5829]
[1730999130540,3.2,193.48,193.34,1.5399]
[1730999130743,2.5823,193.43,193.36,2.5831]
[1730999130943,3.2,193.42,193.36,2.5831]
[1730999131140,3.2,193.42,193.34,1.5399]
[1730999131341,3.2,193.42,193.34,4.1231]
[1730999131758,2.5826,193.4,193.34,4.1231]
[1730999131943,3.2,193.42,193.34,4.1231]
[1730999132143,3.2,193.42,193.35,2.5831]
[1730999132348,3.2,193.42,193.34,1.5399]
[1730999132957,2.5827,193.4,193.29,2.9191]
[1730999133256,3.2,193.42,193.33,2.5834]
[1730999133749,2.5828,193.39,193.33,2.5834]
[1730999133950,2.5828,193.39,193.34,2.5833]
[1730999134251,3.2,193.42,193.29,2.9191]
[1730999134559,2.5829,193.38,193.33,2.5835]
[1730999135246,3.2,193.42,193.23,4.4853]
[1730999135842,2.5832,193.36,193.23,4.4853]
[1730999136053,3.2,193.35,193.23,4.4853]
[1730999138460,2.5836,193.33,193.23,4.4853]
[1730999138657,2.56330387,193.37,193.23,4.4853]
[1730999138858,18.65,193.36,193.05,2.34541025]
[1730999139052,4.7492,193.35,193.1,3.0906]
[1730999139356,1.5492,193.35,193.1,6.2906]
[1730999139548,3.22,193.34,193.1,6.2906]
[1730999139747,1.5492,193.35,193.1,8.91469731]
[1730999139947,3.22,193.34,193.1,8.91469731]
[1730999140158,3.22,193.34,193.23,2.5848]
[1730999140352,3.22,193.34,193.1,8.91469731]
[1730999140761,2.584,193.29,193.22,2.5849]
[1730999140953,3.22,193.29,193.2,4.4684]
[1730999141155,3.22,193.3,193.2,4.4684]
[1730999141355,5.8039,193.3,193.25,2.5845]
[1730999141862,3.22,193.3,193.25,2.5845]
[1730999143358,3.22,193.3,193.2,4.4684]
[1730999143564,5.804,193.3,193.24,2.5847]
[1730999144055,3.22,193.3,193.24,2.5847]
[1730999144262,2.584,193.29,193.24,2.5847]
[1730999145957,15.63378976,193.31,193.25,2.5845]
[1730999146462,12.41378976,193.31,193.21,12.41378976]
[1730999146663,3.22,193.33,193.24,12.41378976]
[1730999147060,5.8035,193.33,193.24,12.41378976]
[1730999147260,12.41378976,193.3,193.2,4.4684]
[1730999147867,2.5841,193.29,193.23,2.5848]
[1730999148365,12.41378976,193.3,193.2,4.4684]
[1730999148555,2.5842,193.28,193.2,4.4684]
[1730999149168,3.22,193.27,193.2,4.4684]
[1730999149354,12.41378976,193.25,193.15,38.81861568]
[1730999149556,12.41378976,193.25,193.14,12.41378976]
[1730999149757,14.99838976,193.25,193.2,2.5852]
[1730999149952,14.99838976,193.25,193.14,12.41378976]
[1730999150162,18.21838976,193.25,193.14,12.41378976]
[1730999150958,15.63378976,193.25,193.14,12.41378976]
[1730999151164,15.63378976,193.25,193.21,2.5851]
[1730999151556,15.63378976,193.25,193.13,1.3494]
[1730999151757,15.63378976,193.25,193.14,12.41378976]
[1730999151961,15.63378976,193.25,193.13,1.3494]
[1730999152266,2.5847,193.24,193.14,12.41378976]
[1730999152467,15.63378976,193.25,193.21,2.5851]
[1730999152673,2.5848,193.24,193.13,1.3494]
[1730999152869,12.41378976,193.22,193.13,1.3494]
[1730999153069,12.41378976,193.22,193.17,2.5856]
[1730999153672,14.99888976,193.22,193.18,2.5855]
[1730999154272,2.5852,193.21,193.16,2.5857]
[1730999154573,15.61378976,193.2,193.16,2.5857]
[1730999154870,14.99888976,193.22,193.17,2.5855]
[1730999155266,18.19888976,193.22,193.17,2.5855]
[1730999156159,18.19888976,193.22,193.11,12.41378976]
[1730999156366,15.61378976,193.22,193.18,2.5854]
[1730999157160,12.41378976,193.24,193.19,2.5852]
[1730999157365,15.61378976,193.24,193.19,2.5852]
[1730999157664,18.19848976,193.24,193.19,2.5852]
[1730999158266,15.61378976,193.24,193.2,2.5852]
[1730999158774,3.2,193.24,193.22,2.5849]
[1730999159166,15.61378976,193.24,193.14,12.41378976]
[1730999159473,15.61378976,193.24,193.17,2.5856]
[1730999159474,12.41378976,193.22,193.17,2.5856]
[1730999159662,14.99878976,193.22,193.17,2.5856]
[1730999159865,12.41378976,193.24,193.19,2.5853]
[1730999160063,12.41378976,193.24,193.13,12.41378976]
[1730999160269,12.41378976,193.24,193.13,15.61378976]
[1730999160464,12.41378976,193.27,193.16,12.41378976]
[1730999160668,12.41378976,193.27,193.17,2.6006]
[1730999160864,12.41378976,193.27,193.2,2.5852]
[1730999161069,12.41378976,193.27,193.18,1.2895]
[1730999161974,12.41378976,193.3,193.19,3.2]
[1730999162173,12.41378976,193.32,193.21,12.41378976]
[1730999162977,14.99738976,193.32,193.27,2.5842]
[1730999163171,2.0077,193.4,193.27,2.5842]
[1730999163368,0.2999,193.41,193.23,12.41378976]
[1730999163676,12.41378976,193.36,193.23,12.41378976]
[1730999163878,12.41378976,193.36,193.32,2.5836]
[1730999164077,0.67733,193.34,193.32,2.5836]
[1730999164472,0.67733,193.34,193.31,2.5837]
[1730999164873,0.67733,193.34,193.27,7.0338]
[1730999165171,0.67733,193.34,193.3,2.5838]
[1730999165779,0.67733,193.34,193.27,7.0338]
[1730999165978,0.67733,193.34,193.31,2.5837]
[1730999166179,0.67733,193.34,193.27,7.0338]
[1730999166381,0.67733,193.34,193.27,3.8338]
[1730999167077,2.5835,193.33,193.27,6.4181]
[1730999167482,2.5835,193.33,193.27,3.8338]
[1730999167670,3.26073,193.34,193.28,2.5841]
[1730999167875,0.67733,193.34,193.28,2.5841]
[1730999168878,2.5835,193.33,193.28,2.5841]
[1730999169084,0.67733,193.34,193.27,3.8338]
[1730999169283,0.67733,193.34,193.15,13.04215323]
[1730999169284,12.41378976,193.33,193.21,15.61378976]
[1730999169576,2.5841,193.29,193.21,12.41378976]
[1730999169780,2.5841,193.29,193.24,2.5846]
[1730999170281,12.41378976,193.3,193.22,2.5849]
[1730999170480,3.2,193.33,193.19,2.536]
[1730999170481,12.41378976,193.27,193.19,2.536]
[1730999170680,2.5846,193.25,193.19,2.536]
[1730999170884,2.5846,193.25,193.2,2.5851]
[1730999171983,2.5847,193.24,193.19,5.1213]
[1730999172180,12.41378976,193.25,193.1,78.42038587]
[1730999172377,12.41378976,193.25,193.13,12.41378976]
[1730999172573,2.5851,193.22,193.17,2.5855]
[1730999172778,12.41378976,193.25,193.11,12.41378976]
[1730999173579,12.41378976,193.25,193.14,12.41378976]
[1730999173780,12.41378976,193.25,193.15,1.3206]
[1730999174179,2.5848,193.23,193.18,2.5854]
[1730999174886,12.41378976,193.25,193.18,2.5854]
[1730999175089,2.585,193.22,193.18,2.5854]
[1730999175379,12.41378976,193.25,193.16,2.5857]
[1730999175579,2.5853,193.2,193.15,1.3206]
[1730999175779,12.41378976,193.22,193.15,1.3206]
[1730999175976,12.41378976,193.25,193.15,1.3206]
[1730999176178,2.5851,193.21,193.15,1.3206]
[1730999176585,2.5849,193.23,193.15,1.3206]
[1730999177584,15.61378976,193.25,193.15,1.3206]
[1730999177883,2.585,193.22,193.18,2.5854]
[1730999178784,2.5846,193.25,193.16,12.41378976]
[1730999178988,2.5846,193.25,193.17,1.34]
[1730999179183,2.5846,193.25,193.17,2.5841]
[1730999180582,2.5843,193.28,193.22,2.5849]
[1730999180891,15.61378976,193.29,193.19,12.41378976]
[1730999181587,3.2,193.29,193.19,12.41378976]
[1730999181789,12.41378976,193.31,193.22,12.41378976]
[1730999181989,16.29111976,193.34,193.27,2.5842]
[1730999182290,16.29111976,193.34,193.23,1.3203]
[1730999182291,0.67733,193.34,193.25,12.41378976]
[1730999182490,2.5836,193.33,193.28,2.5841]
[1730999182985,0.67733,193.34,193.26,2.5952]
[1730999183185,12.41378976,193.31,193.17,12.41378976]
[1730999183384,12.41378976,193.28,193.18,1.2487]
[1730999183889,2.5846,193.25,193.2,2.5852]
[1730999184693,2.5847,193.24,193.2,2.5852]
[1730999185979,2.5846,193.25,193.2,2.5852]
[1730999186486,12.41378976,193.28,193.21,2.5851]
[1730999187288,2.5844,193.26,193.22,2.5849]
[1730999187986,2.5846,193.25,193.18,1.2487]
[1730999189283,2.5847,193.24,193.18,1.2487]
[1730999189483,12.41378976,193.28,193.18,1.2487]
[1730999189694,12.41378976,193.25,193.19,2.5853]
[1730999189897,2.5849,193.23,193.19,2.5853]
[1730999191093,2.5849,193.23,192.98,7.7645]
[1730999191094,12.41378976,193.22,192.98,7.7645]
[1730999191294,12.41378976,193.19,193.07,12.41378976]
[1730999191593,3.2,193.21,193.1,12.41378976]
[1730999192291,3.2,193.21,193.12,12.41378976]
[1730999192797,15.61378976,193.22,193.17,2.5856]
[1730999193187,15.61378976,193.22,193.12,12.41378976]
[1730999193382,2.5853,193.2,193.16,2.5857]
[1730999193792,15.61378976,193.22,193.16,2.5857]
[1730999193993,2.5852,193.2,193.16,2.5857]
[1730999194890,2.5855,193.18,193.12,2.5862]
[1730999195088,12.41378976,193.19,193.12,2.5862]
[1730999195498,2.5856,193.18,193.12,2.5862]
[1730999196693,12.41378976,193.19,193.12,2.5862]
[1730999196901,12.41378976,193.19,193.07,12.41378976]
[1730999197094,3.2,193.18,193.07,12.41378976]
[1730999197498,3.2,193.18,193.07,13.66638976]
[1730999197702,2.5859,193.16,193.11,2.5864]
[1730999198098,3.2,193.18,193.07,15.00278976]
[1730999198296,15.61378976,193.19,193.09,12.41378976]
[1730999198798,2.5856,193.18,193.13,2.5861]
[1730999199296,15.61378976,193.19,193.13,2.5861]
[1730999200913,2.5856,193.17,193.13,2.5861]
[1730999202904,15.61378976,193.19,193.07,15.00278976]
[1730999203102,12.41378976,193.16,193.1,2.5865]
[1730999203606,2.5862,193.13,193.09,2.5867]
[1730999203901,3.2,193.13,193.09,2.5867]
[1730999204293,12.41378976,193.09,193.04,2.5873]
[1730999204503,15.61378976,193.09,193.04,2.5873]
[1730999205213,15.61378976,193.09,193.03,2.5874]
[1730999205396,2.587,193.07,193.03,2.5874]
[1730999205905,2.5872,193.06,193.02,2.5876]
[1730999206600,18.20058976,193.09,192.98,1.3045]
[1730999206801,15.00058976,193.09,192.99,12.41378976]
[1730999207196,2.5868,193.09,192.99,12.41378976]
[1730999207502,2.5866,193.1,193.05,2.5871]
[1730999208910,12.41378976,193.11,192.99,12.41378976]
[1730999209099,12.41378976,193.11,193.06,2.587]
[1730999210109,15.00038976,193.11,193.07,2.587]
[1730999210610,12.41378976,193.11,193.07,2.587]
[1730999210805,2.5863,193.12,193.08,2.5868]
[1730999211304,2.5863,193.12,192.98,1.3045]
[1730999211305,12.41378976,193.1,193.04,2.5873]
[1730999211908,2.5869,193.08,193.04,2.5873]
[1730999212112,3.2,193.14,192.98,1.3045]
[1730999212113,12.41378976,193.07,192.98,1.3045]
[1730999212405,2.587,193.07,192.98,1.3045]
[1730999212711,12.41378976,193.1,193.05,2.5872]
[1730999212712,15.61378976,193.1,193.05,2.5872]
[1730999214009,2.5868,193.09,193.05,2.5872]
[1730999215517,12.41378976,193.1,192.99,12.41378976]
[1730999215702,2.5866,193.1,193.06,2.5871]
[1730999215902,12.41378976,193.13,193.02,12.41378976]
[1730999216114,12.41378976,193.13,193.03,1.3167]
[1730999216312,2.5863,193.12,193.03,1.3167]
[1730999216503,2.5863,193.12,193.04,1.285]
[1730999216704,12.41378976,193.1,193.04,1.285]
[1730999217110,5.77841612,193.14,193.04,1.285]
[1730999217111,12.41378976,193.07,193.04,1.285]
[1730999217413,15.00078976,193.07,193.04,1.285]
[1730999217811,2.5873,193.05,192.98,1.3045]
[1730999218007,12.41378976,193.07,192.98,1.3045]
[1730999218311,12.41378976,193.07,193.02,2.5876]
[1730999218511,2.5871,193.06,193.02,2.5876]
[1730999218708,3.2,193.09,192.98,1.3045]
[1730999219016,2.5868,193.08,193.04,2.5873]
[1730999219309,3.2,193.09,192.98,1.3045]
[1730999219512,3.2,193.09,193.02,2.5876]
[1730999219513,2.5871,193.06,193.02,2.5876]
[1730999220611,3.2,193.09,193.07,2.5869]
[1730999220916,3.2,193.11,193.07,2.5869]
[1730999221117,15.52,193.3,193.04,12.42283228]
[1730999221315,2.5861,193.14,193.05,2.5419]
[1730999221517,2.5861,193.14,193.06,1.3385]
[1730999221819,2.5861,193.14,193.1,2.5866]
[1730999222205,12.42283228,193.16,193.11,2.5863]
[1730999222206,2.5858,193.16,193.11,2.5863]
[1730999222610,12.42001637,193.16,193.06,3.2]
[1730999222809,2.5861,193.14,193.09,2.5866]
[1730999223011,12.42001637,193.16,193.06,1.2514]
[1730999223216,2.5863,193.12,193.06,1.2514]
[1730999223715,3.2,193.15,193.06,1.2514]
[1730999223917,3.31807658,193.2,193.07,12.42001637]
[1730999223918,12.42001637,193.19,193.07,12.42001637]
[1730999224516,3.32795,193.2,193.15,2.5858]
[1730999224820,0.74265,193.2,193.15,2.5858]
[1730999225124,2.5856,193.18,193.13,2.5862]
[1730999225319,12.42001637,193.16,193.06,4.4514]
[1730999225518,2.5861,193.14,193.09,2.5866]
[1730999225714,12.42001637,193.16,193.07,1.3419]
[1730999225913,12.42001637,193.19,193.08,12.42001637]
[1730999226115,2.5859,193.16,193.11,2.5863]
[1730999226320,12.42001637,193.17,193.07,1.3419]
[1730999226525,2.5859,193.15,193.07,1.3419]
[1730999227021,15.00571637,193.17,193.08,12.42001637]
[1730999227224,2.5857,193.17,193.08,12.42001637]
[1730999227418,12.42001637,193.19,193.12,2.5862]
[1730999227618,2.5859,193.15,193.08,12.42001637]
[1730999228122,12.42001637,193.19,193.12,2.5863]
[1730999228322,2.5858,193.16,193.12,2.5863]
[1730999228829,2.5859,193.15,193.11,2.5864]
[1730999229332,15.62001637,193.15,193.06,1.32]
[1730999229620,2.5864,193.12,193.07,2.5868]
[1730999230120,15.62001637,193.15,193.06,1.32]
[1730999230319,2.5863,193.13,193.08,2.5867]
[1730999230821,3.2,193.15,193.06,1.32]
[1730999231012,12.42001637,193.18,193.08,12.42001637]
[1730999231213,3.2,193.17,193.08,12.42001637]
[1730999231411,2.586,193.15,193.08,12.42001637]
[1730999231826,2.586,193.15,193.1,2.5864]
[1730999232122,3.2,193.17,193.08,12.42001637]
[1730999232432,2.5858,193.16,193.11,2.5864]
[1730999233016,3.2,193.17,193.11,2.5864]
[1730999233214,2.5859,193.15,193.11,2.5864]
[1730999234915,2.5861,193.14,193.1,2.5865]
[1730999235119,2.5861,193.14,193.07,1.3423]
[1730999235316,12.42001637,193.16,193.07,1.3423]
[1730999235525,3.2,193.15,193.09,2.5866]
[1730999236023,0.74265,193.2,193.08,12.42001637]
[1730999236230,0.74265,193.2,193.15,12.42001637]
[1730999236429,0.74265,193.2,193.16,2.4708]
[1730999237131,12.42001637,193.26,193.16,2.4708]
[1730999237431,12.42001637,193.31,193.2,12.42001637]
[1730999237629,2.5839,193.3,193.25,2.5845]
[1730999237824,2.5839,193.3,193.2,12.42001637]
[1730999238019,12.42001637,193.31,193.2,12.42001637]
[1730999238223,12.42001637,193.31,193.22,2.5848]
[1730999238429,12.42001637,193.31,193.17,12.42001637]
[1730999238623,2.5844,193.27,193.22,2.5849]
[1730999239018,2.5844,193.27,193.17,12.42001637]
[1730999239626,3.2,193.32,193.17,12.42001637]
[1730999239627,12.42001637,193.31,193.17,12.42001637]
[1730999239822,2.584,193.29,193.23,2.5848]
[1730999240419,2.584,193.29,193.23,2.5847]
[1730999240623,2.5839,193.3,193.2,12.42001637]
[1730999240820,12.42001637,193.31,193.2,12.42001637]
[1730999241033,12.42001637,193.31,193.25,2.5845]
[1730999241231,15.00391637,193.31,193.25,2.5845]
[1730999241425,15.00391637,193.31,193.26,2.5844]
[1730999242029,2.5836,193.32,193.27,2.5843]
[1730999243329,2.5839,193.31,193.26,2.5844]
[1730999244127,2.5839,193.31,193.25,2.5845]
[1730999244332,2.5841,193.29,193.24,2.5977]
[1730999244532,12.42001637,193.31,193.24,2.5977]
[1730999244933,2.5843,193.28,193.24,2.5977]
[1730999245827,2.5843,193.27,193.21,3.9059]
[1730999246026,15.62001637,193.26,193.18,2.5553]
[1730999246431,15.62001637,193.26,193.14,12.42001637]
[1730999246725,12.42001637,193.23,193.13,1.2241]
[1730999246929,2.5854,193.19,193.13,1.2241]
[1730999247138,12.42001637,193.2,193.13,1.2241]
[1730999247440,15.62001637,193.2,193.11,1.2919]